bitfinex-derivatives/quotes_SOLF0:USTF0_20241211
["timestamp","ask_amount","ask_price","bid_price","bid_amount"]
[1733911317150,10.61069636,223.07,222.94,10.61069636]
[1733911317449,10.61069636,223.07,222.96,3.69565659]
[1733911317747,10.61069636,223.07,222.97,3.69565659]
[1733911317950,10.61069636,223.07,222.98,3.69565659]
[1733911318243,72.22587656,223.17,222.94,10.61069636]
[1733911318543,2.2402,223.14,223.03,2.2412]
[1733911318749,10.61069636,223.15,223.04,3.69385132]
[1733911319042,2.18,223.14,223.03,2.2412]
[1733911319243,2.18,223.14,223.04,3.69384844]
[1733911319443,2.18,223.14,223.05,3.69384844]
[1733911319748,2.2403,223.13,223.03,2.2412]
[1733911319947,2.18,223.14,223.04,3.69405703]
[1733911320152,10.61069636,223.12,223.01,3.5735]
[1733911320355,10.61069636,223.12,223.02,3.69910704]
[1733911320539,10.61069636,223.12,223.03,3.69910704]
[1733911320744,10.61069636,223.12,223.04,3.69910704]
[1733911321047,10.61069636,223.12,223.01,1.3321]
[1733911321254,10.61069636,223.12,223.02,3.69922572]
[1733911321454,2.2405,223.11,223.03,3.69922572]
[1733911321745,2.2405,223.11,223.04,3.69903439]
[1733911321942,2.2405,223.1,223.01,1.3321]
[1733911322147,2.18,223.09,223.02,3.69948212]
[1733911322343,2.18,223.09,223.03,3.69948212]
[1733911322546,2.18,223.09,223.04,3.69948212]
[1733911322754,2.18,223.09,223.01,1.3321]
[1733911322950,2.2409,223.07,223.02,3.69951831]
[1733911323155,2.2409,223.07,222.99,7.67729785]
[1733911323362,2.2409,223.07,223.0,3.70110471]
[1733911323553,2.2409,223.07,223.01,3.70110471]
[1733911323862,2.2409,223.07,222.99,7.67729785]
[1733911324061,2.2409,223.07,223.0,3.70121043]
[1733911324357,2.2409,223.07,222.99,7.67729785]
[1733911324358,2.2409,223.07,223.01,3.70121043]
[1733911324557,2.2409,223.07,222.99,7.67729785]
[1733911324759,2.2409,223.07,223.0,3.70162161]
[1733911324958,2.2409,223.07,223.01,3.70162161]
[1733911325159,2.2409,223.07,222.99,7.67729785]
[1733911325353,2.2409,223.07,223.0,3.70269473]
[1733911325560,2.2409,223.07,223.01,3.70269473]
[1733911325760,2.2409,223.06,222.99,5.43569785]
[1733911325955,2.2409,223.06,223.0,3.70365885]
[1733911326155,10.61069636,223.06,223.01,3.70365885]
[1733911326356,10.61069636,223.06,222.99,5.43569785]
[1733911326754,2.2412,223.04,222.99,5.43569785]
[1733911326964,2.2,223.03,222.99,5.43569785]
[1733911327959,2.2415,223.01,222.93,50.11140573]
[1733911328165,12.81069636,223.03,222.94,3.706087]
[1733911328355,12.81069636,223.03,222.95,3.706087]
[1733911328666,2.2415,223.01,222.96,3.706087]
[1733911328854,2.2415,223.01,222.93,50.11140573]
[1733911329060,2.2415,223.01,222.94,3.70613467]
[1733911329356,2.2415,223.01,222.95,3.70613467]
[1733911329560,2.2415,223.01,222.96,3.70613467]
[1733911329760,2.2415,223.01,222.93,2.2422]
[1733911329964,2.2415,223.01,222.94,3.70614363]
[1733911330167,2.2415,223.01,222.95,3.70614363]
[1733911330369,12.81069636,223.03,222.96,3.70614363]
[1733911330564,12.81069636,223.03,222.96,5.36485486]
[1733911331069,2.2415,223.01,222.96,5.36485486]
[1733911335870,2.2417,222.99,222.92,2.2423]
[1733911336073,2.2,222.98,222.93,3.70644844]
[1733911336272,2.2,222.98,222.94,3.70644844]
[1733911336467,2.2,222.98,222.95,3.70644844]
[1733911336670,2.2,222.98,222.88,1.3575]
[1733911336871,10.61069636,222.97,222.9,5.49444806]
[1733911337071,10.61069636,222.97,222.91,3.70809097]
[1733911337371,10.61069636,222.97,222.9,5.49444806]
[1733911337572,10.61069636,222.97,222.91,3.70833367]
[1733911337774,10.61069636,222.97,222.9,5.49444806]
[1733911337969,10.61069636,222.97,222.91,3.70904139]
[1733911338275,10.61069636,222.97,222.9,5.49444806]
[1733911338578,3.6125,222.98,222.91,3.70864558]
[1733911338768,3.6125,222.98,222.9,5.49444806]
[1733911338769,3.6125,222.98,222.92,3.70864558]
[1733911339071,3.6125,222.98,222.87,1.4598]
[1733911339273,3.6125,222.98,222.88,3.70818655]
[1733911339465,3.6125,222.98,222.91,2.2424]
[1733911339665,3.6125,222.98,222.92,3.70818655]
[1733911339870,3.6125,222.98,222.93,3.70818655]
[1733911340070,5.8543,222.98,222.92,2.2423]
[1733911340273,5.8543,222.98,222.93,3.70760466]
[1733911340468,5.8543,222.98,222.92,2.2423]
[1733911340667,5.8543,222.98,222.93,3.70800911]
[1733911340868,5.8543,222.98,222.92,2.2423]
[1733911340869,2.2419,222.97,222.92,2.2423]
[1733911341069,2.2419,222.97,222.93,3.70814601]
[1733911341278,2.2419,222.97,222.92,2.2423]
[1733911341472,5.8543,222.98,222.92,2.2423]
[1733911341673,5.8543,222.98,222.93,3.70954791]
[1733911341873,3.6125,222.98,222.92,2.2423]
[1733911342079,3.6125,222.98,222.93,3.70996538]
[1733911342375,3.6125,222.98,222.92,2.2423]
[1733911342578,3.6125,222.98,222.93,3.71102525]
[1733911342774,2.2421,222.95,222.9,7.52375792]
[1733911342971,10.61069636,222.97,222.91,3.71105521]
[1733911343171,10.61069636,222.97,222.9,5.28125792]
[1733911343375,10.61069636,222.97,222.91,3.71147166]
[1733911343577,10.61069636,222.97,222.9,5.28125792]
[1733911344573,2.242,222.96,222.9,7.52375792]
[1733911345379,10.61069636,222.97,222.9,5.28125792]
[1733911345576,10.61069636,222.94,222.84,49.07629135]
[1733911345777,10.61069636,222.94,222.76,6.17972847]
[1733911345778,10.61069636,222.91,222.85,3.70848115]
[1733911345976,10.61069636,222.91,222.77,1.3211]
[1733911346177,2.2429,222.87,222.8,5.95340341]
[1733911346474,2.2,222.86,222.81,3.70990341]
[1733911346680,2.2,222.86,222.82,3.70990341]
[1733911346973,2.2,222.86,222.83,3.70990341]
[1733911347278,2.2,222.86,222.77,1.3211]
[1733911347475,2.2,222.86,222.78,3.7063907]
[1733911347676,2.2,222.86,222.79,3.7063907]
[1733911347876,2.2,222.86,222.8,3.7063907]
[1733911348181,2.2,222.86,222.77,1.3211]
[1733911348479,2.2,222.86,222.78,3.70463473]
[1733911348676,2.2,222.86,222.79,3.70463473]
[1733911348880,2.2,222.86,222.8,3.70463473]
[1733911349082,2.2,222.86,222.82,5.31922319]
[1733911349276,2.2,222.86,222.83,3.70463473]
[1733911349471,12.85319636,222.91,222.82,5.31922319]
[1733911349472,2.2,222.89,222.82,5.31922319]
[1733911349675,2.2,222.89,222.83,3.70084024]
[1733911349877,2.2,222.89,222.84,3.70084024]
[1733911350175,2.32,222.96,222.82,5.31922319]
[1733911350176,1.0,222.96,222.82,5.31922319]
[1733911350376,2.2,222.95,222.84,10.61069636]
[1733911350580,2.2,222.95,222.85,5.16234026]
[1733911350880,2.2,222.95,222.86,3.69974026]
[1733911351078,2.2,222.95,222.87,14.31043662]
[1733911351283,2.2,222.95,222.88,3.69974026]
[1733911351477,2.2,222.95,222.89,3.69608418]
[1733911351880,2.2,222.95,222.94,2.2421]
[1733911352081,2.2,222.97,222.94,2.2421]
[1733911352480,5.27859937,223.09,222.87,10.61069636]
[1733911352781,10.61069636,223.05,222.97,2.2418]
[1733911352978,2.2,223.04,222.97,2.2418]
[1733911353980,10.61069636,223.02,222.9,10.61069636]
[1733911354185,12.85209636,223.02,222.93,2.2422]
[1733911354379,12.85209636,223.02,222.94,3.69585722]
[1733911354590,12.85209636,223.02,222.93,2.2422]
[1733911355980,10.61069636,223.02,222.94,9.03998463]
[1733911356283,10.61069636,223.02,222.95,3.69659713]
[1733911356487,10.61069636,223.02,222.94,5.3433875]
[1733911357284,10.61069636,223.02,222.95,3.6973184]
[1733911357486,10.61069636,223.02,222.94,7.5854875]
[1733911357682,10.61069636,223.02,222.95,3.69797342]
[1733911357882,10.61069636,223.02,222.94,5.3433875]
[1733911358087,10.61069636,223.02,222.95,5.93988258]
[1733911358288,10.61069636,223.02,222.95,2.242]
[1733911358780,10.61069636,223.02,222.94,7.5853875]
[1733911358978,10.61069636,223.02,222.95,3.69844282]
[1733911359180,10.61069636,223.02,222.94,5.3433875]
[1733911359377,10.61069636,223.02,222.95,3.69928926]
[1733911359581,10.61069636,223.02,222.94,5.3433875]
[1733911359781,10.61069636,223.02,222.95,3.70013294]
[1733911359984,10.61069636,223.02,222.94,5.3433875]
[1733911360177,12.85209636,223.02,222.95,3.70012788]
[1733911360383,10.61069636,223.02,222.94,5.3433875]
[1733911360685,10.61069636,223.02,222.95,3.70118219]
[1733911360881,10.61069636,223.02,222.94,5.3433875]
[1733911361088,10.61069636,223.02,222.95,3.70105896]
[1733911361283,10.61069636,223.02,222.94,5.3433875]
[1733911361580,2.2414,223.01,222.95,3.70216825]
[1733911361787,10.61069636,222.99,222.94,5.3433875]
[1733911361988,2.18,222.98,222.94,5.3433875]
[1733911362693,2.18,222.98,222.87,49.22673749]
[1733911362883,2.18,222.98,222.88,3.70358582]
[1733911363086,2.18,222.98,222.89,3.70358582]
[1733911363382,2.18,222.98,222.9,3.70358582]
[1733911363584,2.18,222.98,222.91,3.70358582]
[1733911363789,2.18,222.98,222.92,3.70358582]
[1733911363988,2.18,222.98,222.93,3.70358582]
[1733911364184,2.18,222.98,222.94,3.70358582]
[1733911364389,2.18,222.98,222.87,49.22673749]
[1733911364686,2.18,222.98,222.92,2.2423]
[1733911364893,2.18,222.98,222.93,3.70407612]
[1733911365085,4.4218,222.98,222.9,2.2425]
[1733911365389,4.4218,222.98,222.91,3.70465539]
[1733911365692,10.61069636,222.96,222.92,3.70465539]
[1733911365881,10.61069636,222.96,222.93,3.70465539]
[1733911366184,10.61069636,222.96,222.87,49.22673749]
[1733911366387,10.61069636,222.96,222.91,2.2424]
[1733911366581,2.18,222.98,222.92,3.70635642]
[1733911366788,2.18,222.98,222.93,3.70635642]
[1733911366982,2.18,222.98,222.94,3.70635642]
[1733911367184,2.18,222.98,222.95,3.70635642]
[1733911367385,2.18,222.98,222.87,49.22673749]
[1733911367587,2.18,222.98,222.88,3.70698558]
[1733911367789,2.18,222.98,222.89,3.70698558]
[1733911367990,2.18,222.98,222.9,3.70698558]
[1733911368292,2.18,222.98,222.91,3.70698558]
[1733911368488,2.18,222.98,222.85,13.47719636]
[1733911368489,2.18,222.98,222.92,3.70698558]
[1733911368692,2.18,222.98,222.93,3.70698558]
[1733911369291,2.18,222.98,222.94,3.70698558]
[1733911369491,2.18,222.98,222.95,3.70698558]
[1733911369695,2.18,222.98,222.92,2.2423]
[1733911369895,2.18,222.98,222.93,3.70849315]
[1733911370091,2.18,222.98,222.94,3.70849315]
[1733911370290,2.18,222.98,222.95,3.70849315]
[1733911370486,2.18,222.98,222.96,3.70849315]
[1733911370793,2.18,222.98,222.93,2.2422]
[1733911370993,2.18,222.98,222.94,3.70940129]
[1733911371191,2.18,222.98,222.95,3.70940129]
[1733911371493,2.18,222.98,222.96,3.70940129]
[1733911371790,2.18,222.98,222.93,2.2422]
[1733911371997,2.18,222.98,222.94,3.7102814]
[1733911372291,2.18,222.98,222.93,2.2422]
[1733911372989,10.61069636,222.96,222.9,2.2425]
[1733911373191,6.80115605,222.92,222.9,2.2425]
[1733911373390,8.98115605,222.92,222.85,9.66765605]
[1733911373585,8.98115605,222.92,222.88,2.2427]
[1733911373989,8.98115605,222.92,222.85,9.66765605]
[1733911374389,8.98115605,222.92,222.9,2.2425]
[1733911374592,8.98115605,222.92,222.91,3.7120303]
[1733911374985,8.98115605,222.92,222.82,5.31922319]
[1733911374986,2.2425,222.91,222.82,5.31922319]
[1733911375187,6.80115605,222.89,222.84,3.71392505]
[1733911375391,6.80115605,222.89,222.85,3.71392505]
[1733911375596,2.18,222.92,222.86,3.71392505]
[1733911375796,2.18,222.92,222.87,3.71392505]
[1733911375992,2.18,222.92,222.82,5.31922319]
[1733911376299,6.80115605,222.85,222.83,3.71478908]
[1733911376499,8.98115605,222.85,222.84,3.71478908]
[1733911377191,2.18,222.85,222.84,3.71478908]
[1733911380297,46.64,223.0,222.84,3.71478908]
[1733911380497,2.18,222.99,222.85,3.71478908]
[1733911380696,2.18,222.99,222.86,3.71478908]
[1733911380899,46.64,223.0,222.87,3.71478908]
[1733911381094,10.63287559,222.98,222.88,3.71478908]
[1733911381299,10.63287559,222.98,222.89,3.71478908]
[1733911381489,10.63287559,222.98,222.9,3.70780273]
[1733911381691,2.18,222.99,222.91,3.70780273]
[1733911381997,2.18,222.99,222.92,3.70780273]
[1733911382197,2.18,222.99,222.95,2.242]
[1733911382700,2.18,222.99,222.89,2.7757]
[1733911382896,2.18,222.99,222.9,3.70606909]
[1733911383099,2.18,223.0,222.92,10.63287559]
[1733911383396,2.18,223.0,222.93,3.70606909]
[1733911383610,2.18,223.0,222.98,2.2417]
[1733911383894,2.18,223.01,222.99,3.70606909]
[1733911384095,2.18,223.01,222.98,2.2417]
[1733911384301,2.18,223.01,222.99,3.70354069]
[1733911384599,2.18,223.01,222.98,2.2417]
[1733911384796,2.18,223.01,222.99,3.70335415]
[1733911384992,2.18,223.01,222.98,2.2417]
[1733911385193,4.1509,223.13,222.94,10.63287559]
[1733911385399,10.63287559,223.09,223.02,2.2413]
[1733911386493,10.63287559,223.09,222.98,2.2417]
[1733911386696,10.63287559,223.09,222.99,3.70062867]
[1733911386897,10.63287559,223.09,223.0,3.70062867]
[1733911387099,10.63287559,223.09,223.01,3.70062867]
[1733911387299,10.63287559,223.09,223.02,3.70062867]
[1733911387498,5.29184877,223.15,222.91,6.17972847]
[1733911387499,17.9474,223.29,223.03,3.70062867]
[1733911387803,12.87297559,223.14,223.08,2.2407]
[1733911387999,10.63287559,223.14,223.0,12.75287559]
[1733911388198,10.63287559,223.11,223.01,6.54309335]
[1733911388400,2.12,223.1,223.01,2.8463]
[1733911388602,2.12,223.1,223.02,3.69703979]
[1733911388805,2.12,223.1,223.05,5.34463976]
[1733911391901,10.63287559,223.08,223.05,5.34463976]
[1733911392100,10.63287559,223.08,222.98,1.3307]
[1733911392309,10.63287559,223.08,222.99,3.69531315]
[1733911392601,10.63287559,223.05,223.0,9.15477521]
[1733911392798,10.63287559,223.05,222.91,2.12]
[1733911392799,10.63287559,223.02,222.91,3.4527]
[1733911393002,10.63287559,223.02,222.92,3.69545359]
[1733911393297,12.87427559,223.02,222.93,3.69545359]
[1733911393500,12.87427559,223.02,222.94,3.69545359]
[1733911393809,12.87427559,223.02,222.91,3.4527]
[1733911393810,12.87427559,223.02,222.95,3.69545359]
[1733911394000,12.87427559,223.02,222.96,3.69545359]
[1733911394205,12.87427559,223.02,222.91,1.3327]
[1733911394506,12.87427559,223.02,222.92,3.6967381]
[1733911394701,12.87427559,223.02,222.91,1.3327]
[1733911394702,12.87427559,223.02,222.94,2.2421]
[1733911394901,12.87427559,223.02,222.95,3.6967381]
[1733911395099,12.87427559,223.02,222.96,3.6967381]
[1733911395409,10.63287559,223.02,222.96,3.6967381]
[1733911395608,10.63287559,223.02,222.97,3.6967381]
[1733911395810,10.63287559,223.02,222.91,1.3327]
[1733911396011,10.63287559,223.02,222.92,3.69883088]
[1733911396310,2.2413,223.03,222.98,5.50316038]
[1733911397010,2.12,223.05,222.99,3.6986848]
[1733911397212,2.12,223.05,223.0,3.69752875]
[1733911397508,2.12,223.05,223.01,3.69752875]
[1733911397710,2.12,223.05,223.03,2.2412]
[1733911398712,2.12,223.05,223.01,2.2413]
[1733911398915,2.12,223.05,223.02,3.69639136]
[1733911399115,2.12,223.05,222.99,1.377]
[1733911399315,2.12,223.05,223.01,2.2413]
[1733911399515,2.12,223.05,223.02,3.69571411]
[1733911399717,2.12,223.05,222.99,1.377]
[1733911399916,2.12,223.09,223.0,3.69592726]
[1733911400115,2.12,223.09,223.01,3.69592726]
[1733911400418,2.12,223.09,223.02,3.69592726]
[1733911400715,2.12,223.09,222.99,2.8192]
[1733911401018,12.75287559,223.09,223.0,3.69532851]
[1733911401221,2.12,223.12,223.01,3.69532851]
[1733911401519,14.99327559,223.12,223.04,2.241]
[1733911401718,10.63287559,223.12,223.04,2.241]
[1733911402113,2.12,223.11,223.04,2.241]
[1733911403019,2.12,223.1,223.04,2.241]
[1733911404021,2.12,223.1,223.0,1.3615]
[1733911404224,2.12,223.1,223.03,2.2412]
[1733911405313,12.75287559,223.1,223.01,2.2414]
[1733911405817,2.2408,223.08,223.0,1.3615]
[1733911406013,2.2408,223.08,223.01,3.69177906]
[1733911406223,2.2408,223.08,223.0,1.3615]
[1733911406423,2.2408,223.08,223.01,3.69155349]
[1733911406720,2.2408,223.08,223.0,1.3615]
[1733911406916,2.2408,223.08,223.01,3.69158897]
[1733911407117,2.2408,223.08,223.0,1.3615]
[1733911407316,12.75287559,223.1,223.01,5.9326162]
[1733911407519,2.2406,223.09,223.01,2.2414]
[1733911407920,2.2406,223.09,223.0,1.3615]
[1733911408121,12.75287559,223.1,223.02,2.2413]
[1733911408726,14.99347559,223.1,223.02,2.2413]
[1733911409527,2.2406,223.09,223.02,2.2413]
[1733911411426,12.75287559,223.1,223.0,1.3615]
[1733911411628,12.75287559,223.1,223.04,2.2411]
[1733911412422,12.75287559,223.1,223.05,2.241]
[1733911412423,2.12,223.1,223.05,2.241]
[1733911415530,2.14,223.09,223.06,2.2409]
[1733911416532,2.14,223.09,223.07,2.2408]
[1733911417333,10.63287559,223.13,223.09,2.2405]
[1733911417527,2.14,223.12,223.09,2.2405]
[1733911418925,2.14,223.12,223.04,2.2411]
[1733911419128,2.14,223.12,223.0,11.99437559]
[1733911419336,6.79014171,223.11,223.04,6.79014171]
[1733911419531,6.79014171,223.11,223.0,1.3615]
[1733911419830,6.79014171,223.09,223.01,10.48026227]
[1733911420031,6.79014171,223.09,223.02,3.69012056]
[1733911420236,6.79014171,223.09,223.03,3.69012056]
[1733911420429,6.79014171,223.09,223.04,3.69012056]
[1733911420734,6.79014171,223.09,223.01,6.79014171]
[1733911420934,6.79014171,223.09,223.02,3.69144426]
[1733911421237,6.79014171,223.09,223.03,3.69144426]
[1733911421433,6.79014171,223.09,223.04,3.69144426]
[1733911421642,6.79014171,223.09,223.01,6.79014171]
[1733911421936,6.79014171,223.09,223.02,3.69367963]
[1733911422132,6.79014171,223.09,223.01,6.79014171]
[1733911422338,6.79014171,223.09,223.02,3.69527355]
[1733911422527,6.79014171,223.09,223.03,3.69527355]
[1733911422730,6.79014171,223.09,223.04,3.69527355]
[1733911422937,6.79014171,223.09,223.01,6.79014171]
[1733911423239,6.79014171,223.09,223.04,2.2411]
[1733911423435,6.79014171,223.09,223.05,3.69336318]
[1733911423636,6.79014171,223.09,223.04,2.2411]
[1733911423835,6.79014171,223.09,223.05,3.69607843]
[1733911424036,6.79014171,223.09,223.04,2.2411]
[1733911424232,6.79014171,223.09,223.05,3.69612247]
[1733911424440,6.79014171,223.07,223.06,3.69612247]
[1733911425131,9.03104171,223.07,223.0,3.603]
[1733911425332,8.93014171,223.07,223.01,3.70097925]
[1733911425537,6.79014171,223.05,223.02,9.00033278]
[1733911425837,6.79014171,223.05,223.03,3.70172007]
[1733911426039,6.79014171,223.05,223.04,3.70172007]
[1733911426430,9.03124171,223.05,223.04,3.70172007]
[1733911426832,6.79014171,223.05,223.04,3.70172007]
[1733911427539,1.3263,223.18,223.04,3.70172007]
[1733911427540,5.38845618,223.21,223.04,3.70172007]
[1733911427834,6.79014171,223.13,223.08,2.2406]
[1733911428038,6.79014171,223.13,223.09,3.70172007]
[1733911428241,6.79014171,223.13,223.1,3.70172007]
[1733911428535,2.14,223.14,223.08,2.2406]
[1733911428737,6.79014171,223.13,223.08,2.2406]
[1733911429043,6.79014171,223.13,223.09,3.70169164]
[1733911429335,6.79014171,223.13,223.1,3.70169164]
[1733911429541,6.79014171,223.13,223.08,2.2406]
[1733911429841,6.79014171,223.13,223.09,3.70180962]
[1733911430047,6.79014171,223.13,223.1,3.70180962]
[1733911430337,6.79014171,223.13,223.08,2.2406]
[1733911430535,6.79014171,223.13,223.09,3.70186331]
[1733911430731,2.14,223.14,223.1,3.70186331]
[1733911430930,2.14,223.14,223.07,6.79014171]
[1733911430931,4.4772,223.3,223.11,3.70186331]
[1733911431132,6.79014171,223.14,223.12,3.70186331]
[1733911431338,2.14,223.16,223.02,5.29861271]
[1733911431536,6.79014171,223.13,223.06,6.79014171]
[1733911431736,6.79014171,223.14,223.11,2.2404]
[1733911431932,6.79014171,223.14,223.12,3.7008349]
[1733911432137,6.79014171,223.14,223.11,2.2404]
[1733911432335,6.79014171,223.14,223.12,3.70042484]
[1733911432544,6.79014171,223.14,223.09,2.2406]
[1733911432836,6.79014171,223.12,223.1,3.69974785]
[1733911433041,6.79014171,223.12,223.03,6.79014171]
[1733911433341,2.14,223.11,223.04,3.70014975]
[1733911433541,6.79014171,223.1,223.05,3.70014975]
[1733911433740,6.79014171,223.1,223.06,3.70014975]
[1733911433941,2.14,223.11,223.07,3.70014975]
[1733911433942,6.79014171,223.08,223.07,3.70014975]
[1733911434435,6.79014171,223.08,223.02,5.29861271]
[1733911434436,9.03084171,223.08,223.02,7.53991271]
[1733911434642,6.79014171,223.06,223.03,3.70217013]
[1733911434942,2.14,223.06,223.04,3.70217013]
[1733911435137,2.14,223.06,222.95,2.7343]
[1733911435337,4.381,223.06,222.99,2.2415]
[1733911435642,6.79014171,223.04,223.0,3.70337309]
[1733911435839,4.381,223.06,223.01,3.70337309]
[1733911435840,6.79014171,223.02,223.01,3.70337309]
[1733911437142,10.61883222,223.05,223.01,3.70337309]
[1733911437342,2.2412,223.04,222.97,2.2417]
[1733911437645,2.2412,223.04,222.98,5.9447313]
[1733911437844,2.2412,223.04,222.99,3.7030313]
[1733911438140,2.2412,223.04,223.0,3.7030313]
[1733911438334,2.2412,223.04,223.01,3.7030313]
[1733911438537,2.2412,223.04,222.99,5.28012788]
[1733911438741,2.2412,223.04,223.0,3.70349307]
[1733911438942,2.2412,223.04,223.01,3.70349307]
[1733911439135,2.2412,223.04,222.99,5.28012788]
[1733911439341,2.2412,223.04,223.0,3.7035068]
[1733911439542,2.2412,223.04,223.01,3.7035068]
[1733911439741,2.2412,223.04,222.99,7.52172788]
[1733911440044,2.2412,223.04,223.0,3.70437125]
[1733911440244,2.2412,223.04,222.99,7.52172788]
[1733911440445,2.2412,223.04,223.0,3.70432635]
[1733911440640,2.2412,223.04,222.99,7.52172788]
[1733911440849,2.2412,223.04,223.0,3.70503788]
[1733911441047,2.2412,223.04,223.01,3.70503788]
[1733911441241,2.2412,223.04,222.99,7.52172788]
[1733911441547,2.2412,223.04,223.0,3.70590334]
[1733911441739,2.2412,223.04,222.99,7.52172788]
[1733911441740,2.2412,223.04,223.01,3.70590334]
[1733911441947,2.2412,223.04,222.99,7.52172788]
[1733911442147,2.2412,223.04,223.0,3.70526378]
[1733911442447,2.2412,223.04,223.01,3.70526378]
[1733911442643,2.2412,223.04,222.99,7.52172788]
[1733911442850,2.2412,223.04,223.0,3.70471638]
[1733911443044,2.2412,223.04,223.01,3.70471638]
[1733911443245,2.2412,223.04,222.99,7.52172788]
[1733911443446,2.2412,223.04,223.0,3.7041812]
[1733911443748,2.2412,223.04,223.01,3.7041812]
[1733911443948,2.2412,223.04,222.99,7.52172788]
[1733911444340,2.2412,223.04,223.0,3.70409905]
[1733911444548,2.2412,223.04,223.01,3.70409905]
[1733911444750,2.2412,223.04,222.99,7.52172788]
[1733911444950,2.2412,223.04,223.0,3.70318393]
[1733911445148,2.2413,223.03,223.01,3.70318393]
[1733911445451,2.2413,223.03,222.99,7.52172788]
[1733911445649,2.2413,223.03,223.0,3.70283332]
[1733911445845,2.2413,223.03,222.99,7.52172788]
[1733911446042,2.2413,223.03,223.0,3.70276745]
[1733911446347,2.2413,223.03,223.01,3.70276745]
[1733911446543,2.2413,223.03,222.99,7.52172788]
[1733911446744,2.2413,223.03,223.0,3.70240178]
[1733911446942,2.2413,223.03,222.99,7.52172788]
[1733911446943,2.2413,223.03,223.01,3.70240178]
[1733911447147,2.2413,223.03,222.99,7.52172788]
[1733911447348,2.2413,223.03,223.0,3.70199449]
[1733911447552,2.2413,223.03,222.99,7.52172788]
[1733911447851,2.2413,223.03,223.0,3.70249248]
[1733911448155,10.61883222,223.02,223.01,3.70249248]
[1733911448350,10.61883222,223.02,222.89,4.1352]
[1733911448551,2.1,223.01,222.9,3.70521752]
[1733911448748,2.1,223.01,222.91,3.70521752]
[1733911448951,2.1,223.01,222.92,3.70521752]
[1733911449253,2.1,223.01,222.94,2.2421]
[1733911449455,2.1,223.01,222.95,3.70521752]
[1733911449654,2.1,223.01,222.96,3.70521752]
[1733911449952,2.2417,222.98,222.97,3.70521752]
[1733911450156,2.2417,222.98,222.94,7.67152836]
[1733911450352,2.2417,222.98,222.95,3.7052862]
[1733911450556,2.2417,222.98,222.94,7.67152836]
[1733911450756,2.2417,222.98,222.95,3.70482902]
[1733911450956,2.2417,222.98,222.94,7.67152836]
[1733911451558,2.1,223.01,222.95,3.70342733]
[1733911451762,2.1,223.01,222.96,3.70342733]
[1733911452059,2.1,223.01,222.98,2.2417]
[1733911452658,2.1,223.01,222.99,2.2416]
[1733911453757,2.1,223.01,223.0,3.69876551]
[1733911453956,10.61883222,223.04,222.94,5.42942836]
[1733911454155,2.1,223.03,222.95,3.69984169]
[1733911454356,2.1,223.03,222.96,3.69984169]
[1733911454662,2.1,223.03,222.97,3.69984169]
[1733911454875,2.1,223.03,223.02,2.2413]
[1733911455259,2.1,223.06,223.03,2.2412]
[1733911455457,2.1,223.06,222.97,10.61883222]
[1733911455659,2.1,223.06,222.98,3.69861173]
[1733911455863,10.61883222,223.09,222.99,3.69861173]
[1733911455864,2.1,223.05,222.99,3.69861173]
[1733911456057,2.1,223.05,223.0,3.69861173]
[1733911456258,2.1,223.05,223.01,3.69861173]
[1733911456461,2.1,223.05,222.95,1.3345]
[1733911456662,4.3411,223.05,222.99,2.2416]
[1733911456864,4.3411,223.05,223.0,3.69910492]
[1733911457063,4.3411,223.05,223.01,3.69910492]
[1733911457358,2.1,223.05,223.0,2.2415]
[1733911457761,2.1,223.05,223.01,3.69866772]
[1733911457967,2.1,223.05,223.02,3.69866772]
[1733911458262,2.1,223.05,222.95,1.3345]
[1733911458567,2.1,223.05,222.96,3.69837918]
[1733911458766,2.1,223.05,222.97,3.69837918]
[1733911459065,2.1,223.05,223.0,2.2415]
[1733911459266,2.1,223.05,223.01,3.69837918]
[1733911459466,2.1,223.05,223.02,3.69837918]
[1733911459662,2.1,223.05,223.03,3.69837918]
[1733911459866,2.1,223.05,222.99,6.79277989]
[1733911460064,2.1,223.05,223.0,3.69699108]
[1733911460265,2.1,223.05,223.01,3.69699108]